[Event "Titled Tuesday Blitz August 1 Early 2023"]
[White "Zeynalli, Rashad"]
[Black "Goltseva, Ekaterina"]
[WhiteFideId "13403320"]
[BlackFideId "24173770"]
[WhiteElo "2710"]
[BlackElo "2549"]
[Result "0-1"]
[Round "10"]
[TimeControl "180+1"]
[Date "2023.08.01"]
[WhiteClock "0:01:25"]
[BlackClock "0:00:21"]
[Board "40"]

1. e4 {[%clk 0:03:00]}  e6 {[%clk 0:02:55]} 2. d4 {[%clk 0:03:00]}  d5 {[%clk 0:02:55]} 3. Nd2 {[%clk 0:03:01]}  c5 {[%clk 0:02:55]} 4. Ngf3 {[%clk 0:03:00]}  cxd4 {[%clk 0:02:54]} 5. Nxd4 {[%clk 0:03:01]}  Nf6 {[%clk 0:02:55]} 6. exd5 {[%clk 0:03:00]}  Nxd5 {[%clk 0:02:54]} 7. Bc4 {[%clk 0:03:00]}  Bc5 {[%clk 0:02:48]} 8. N4b3 {[%clk 0:02:58]}  Bb6 {[%clk 0:02:47]} 9. O-O {[%clk 0:02:56]}  O-O {[%clk 0:02:44]} 10. Ne4 {[%clk 0:02:51]}  Nc6 {[%clk 0:02:38]} 11. Bg5 {[%clk 0:02:50]}  Qc7 {[%clk 0:02:26]} 12. Bxd5 {[%clk 0:02:39]}  exd5 {[%clk 0:02:23]} 13. Qxd5 {[%clk 0:02:40]}  Be6 {[%clk 0:02:19]} 14. Qd6 {[%clk 0:02:40]}  h6 {[%clk 0:02:03]} 15. Bf4 {[%clk 0:02:22]}  Qxd6 {[%clk 0:01:54]} 16. Nxd6 {[%clk 0:02:20]}  Nb4 {[%clk 0:01:46]} 17. c3 {[%clk 0:02:11]}  Nd3 {[%clk 0:01:36]} 18. Bg3 {[%clk 0:02:06]}  Nxb2 {[%clk 0:01:32]} 19. Nxb7 {[%clk 0:02:06]}  Na4 {[%clk 0:01:21]} 20. Rac1 {[%clk 0:02:01]}  Rfc8 {[%clk 0:01:14]} 21. Be5 {[%clk 0:01:53]}  f6 {[%clk 0:01:04]} 22. Bd4 {[%clk 0:01:54]}  Bxd4 {[%clk 0:00:57]} 23. cxd4 {[%clk 0:01:52]}  Nc3 {[%clk 0:00:56]} 24. Rfe1 {[%clk 0:01:46]}  Bxb3 {[%clk 0:00:54]} 25. Nc5 {[%clk 0:01:34]}  Nxa2 {[%clk 0:00:51]} 26. Rb1 {[%clk 0:01:33]}  Bd5 {[%clk 0:00:47]} 27. Re7 {[%clk 0:01:32]}  Rab8 {[%clk 0:00:45]} 28. Rbe1 {[%clk 0:01:32]}  Nb4 {[%clk 0:00:29]} 29. Rxa7 {[%clk 0:01:30]}  Nc6 {[%clk 0:00:27]} 30. Rd7 {[%clk 0:01:29]}  Rd8 {[%clk 0:00:27]} 31. Rc7 {[%clk 0:01:28]}  Rbc8 {[%clk 0:00:25]} 32. Rb7 {[%clk 0:01:27]}  Nxd4 {[%clk 0:00:25]} 33. Rd7 {[%clk 0:01:24]}  Rxd7 {[%clk 0:00:23]} 34. Nxd7 {[%clk 0:01:25]}  Rc1 {[%clk 0:00:19]} 35. Rxc1 {[%clk 0:01:24]}  Ne2+ {[%clk 0:00:19]} 36. Kf1 {[%clk 0:01:24]}  Nxc1 {[%clk 0:00:20]} 37. f3 {[%clk 0:01:25]}  Nd3 {[%clk 0:00:20]} 38. Ke2 {[%clk 0:01:25]}  Ne5 {[%clk 0:00:21]} 39. Kf2 {[%clk 0:01:25]}  Nxd7 {[%clk 0:00:21]} 0-1


[Site "https://www.chess.com"]

[Event "Titled Tuesday Blitz August 1 Early 2023"]
[White "Onufrienko, Vladislav"]
[Black "Weetik, Vjacheslav"]
[WhiteFideId "13804332"]
[BlackFideId "4153472"]
[WhiteElo "2573"]
[BlackElo "2738"]
[Result "0-1"]
[Round "10"]
[TimeControl "180+1"]
[Date "2023.08.01"]
[WhiteClock "0:00:06"]
[BlackClock "0:00:09"]
[Board "42"]

1. d4 {[%clk 0:03:00]}  Nf6 {[%clk 0:02:59]} 2. Nc3 {[%clk 0:03:00]}  d5 {[%clk 0:03:00]} 3. Bf4 {[%clk 0:03:01]}  c5 {[%clk 0:03:00]} 4. e3 {[%clk 0:03:01]}  cxd4 {[%clk 0:03:00]} 5. exd4 {[%clk 0:03:01]}  a6 {[%clk 0:03:00]} 6. Nf3 {[%clk 0:02:53]}  Nc6 {[%clk 0:02:59]} 7. Be2 {[%clk 0:02:48]}  Bg4 {[%clk 0:02:56]} 8. Ne5 {[%clk 0:02:44]}  Bxe2 {[%clk 0:02:55]} 9. Nxe2 {[%clk 0:02:45]}  Qb6 {[%clk 0:02:54]} 10. O-O {[%clk 0:02:34]}  e6 {[%clk 0:02:52]} 11. c4 {[%clk 0:02:31]}  dxc4 {[%clk 0:02:39]} 12. Nxc4 {[%clk 0:02:28]}  Qd8 {[%clk 0:02:39]} 13. Rc1 {[%clk 0:02:24]}  Nd5 {[%clk 0:02:32]} 14. Bg3 {[%clk 0:02:15]}  Be7 {[%clk 0:02:32]} 15. h3 {[%clk 0:02:15]}  O-O {[%clk 0:02:32]} 16. Ne5 {[%clk 0:02:13]}  Nxe5 {[%clk 0:02:22]} 17. dxe5 {[%clk 0:02:10]}  Qb6 {[%clk 0:02:14]} 18. Nf4 {[%clk 0:01:55]}  Rfd8 {[%clk 0:02:10]} 19. Nxd5 {[%clk 0:01:31]}  Rxd5 {[%clk 0:02:11]} 20. Qc2 {[%clk 0:01:31]}  Rad8 {[%clk 0:02:05]} 21. Qc7 {[%clk 0:01:10]}  Bc5 {[%clk 0:01:57]} 22. Qxb6 {[%clk 0:00:59]}  Bxb6 {[%clk 0:01:58]} 23. Rc2 {[%clk 0:00:59]}  h5 {[%clk 0:01:50]} 24. Bf4 {[%clk 0:00:50]}  R8d7 {[%clk 0:01:31]} 25. h4 {[%clk 0:00:45]}  Kh7 {[%clk 0:01:28]} 26. g3 {[%clk 0:00:45]}  Kg6 {[%clk 0:01:27]} 27. Kg2 {[%clk 0:00:45]}  Kf5 {[%clk 0:01:26]} 28. Rc8 {[%clk 0:00:39]}  Rd8 {[%clk 0:01:15]} 29. Rfc1 {[%clk 0:00:38]}  f6 {[%clk 0:01:15]} 30. exf6 {[%clk 0:00:30]}  gxf6 {[%clk 0:01:15]} 31. Rxd8 {[%clk 0:00:21]}  Rxd8 {[%clk 0:01:15]} 32. Kf3 {[%clk 0:00:19]}  Rd5 {[%clk 0:00:46]} 33. Be3 {[%clk 0:00:16]}  Rb5 {[%clk 0:00:36]} 34. b3 {[%clk 0:00:16]}  e5 {[%clk 0:00:37]} 35. Bxb6 {[%clk 0:00:14]}  Rxb6 {[%clk 0:00:37]} 36. Rc4 {[%clk 0:00:13]}  Rd6 {[%clk 0:00:32]} 37. Ke2 {[%clk 0:00:07]}  Ke6 {[%clk 0:00:26]} 38. Rc8 {[%clk 0:00:06]}  Rc6 {[%clk 0:00:17]} 39. Rxc6+ {[%clk 0:00:03]}  bxc6 {[%clk 0:00:18]} 40. Kd3 {[%clk 0:00:04]}  Kd5 {[%clk 0:00:15]} 41. f3 {[%clk 0:00:03]}  f5 {[%clk 0:00:16]} 42. Ke3 {[%clk 0:00:02]}  c5 {[%clk 0:00:13]} 43. Kd3 {[%clk 0:00:02]}  e4+ {[%clk 0:00:03]} 44. fxe4+ {[%clk 0:00:03]}  fxe4+ {[%clk 0:00:04]} 45. Ke3 {[%clk 0:00:03]}  Ke5 {[%clk 0:00:05]} 46. a3 {[%clk 0:00:03]}  Kf5 {[%clk 0:00:04]} 47. b4 {[%clk 0:00:02]}  cxb4 {[%clk 0:00:03]} 48. axb4 {[%clk 0:00:03]}  Ke5 {[%clk 0:00:04]} 49. g4 {[%clk 0:00:02]}  hxg4 {[%clk 0:00:04]} 50. h5 {[%clk 0:00:02]}  Kf5 {[%clk 0:00:05]} 51. h6 {[%clk 0:00:02]}  Kg6 {[%clk 0:00:05]} 52. Kxe4 {[%clk 0:00:03]}  Kxh6 {[%clk 0:00:06]} 53. Kf4 {[%clk 0:00:03]}  Kh5 {[%clk 0:00:06]} 54. Kg3 {[%clk 0:00:04]}  Kg5 {[%clk 0:00:07]} 55. Kf2 {[%clk 0:00:04]}  Kf4 {[%clk 0:00:07]} 56. Kg2 {[%clk 0:00:05]}  Ke4 {[%clk 0:00:05]} 57. Kg3 {[%clk 0:00:05]}  Kd4 {[%clk 0:00:06]} 58. Kxg4 {[%clk 0:00:06]}  Kc4 {[%clk 0:00:07]} 59. Kf3 {[%clk 0:00:06]}  Kxb4 {[%clk 0:00:07]} 60. Ke2 {[%clk 0:00:07]}  Kb3 {[%clk 0:00:08]} 61. Kd1 {[%clk 0:00:07]}  Kb2 {[%clk 0:00:08]} 62. Kd2 {[%clk 0:00:07]}  a5 {[%clk 0:00:09]} 63. Kd3 {[%clk 0:00:06]}  a4 {[%clk 0:00:09]} 0-1


[Site "https://www.chess.com"]

[Event "Titled Tuesday Blitz August 1 Early 2023"]
[White "Preotu, Razvan"]
[Black "Vlassov, Nikolai"]
[WhiteFideId "2613280"]
[BlackFideId "4103360"]
[WhiteElo "2715"]
[BlackElo "2551"]
[Result "1-0"]
[Round "10"]
[TimeControl "180+1"]
[Date "2023.08.01"]
[WhiteClock "0:00:08"]
[BlackClock "0:00:00"]
[Board "45"]

1. e4 {[%clk 0:02:59]}  Nc6 {[%clk 0:02:59]} 2. d4 {[%clk 0:02:58]}  d5 {[%clk 0:02:51]} 3. e5 {[%clk 0:02:55]}  h5 {[%clk 0:02:51]} 4. Nf3 {[%clk 0:02:51]}  Bg4 {[%clk 0:02:51]} 5. Bb5 {[%clk 0:02:50]}  Qd7 {[%clk 0:02:50]} 6. O-O {[%clk 0:02:44]}  a6 {[%clk 0:02:49]} 7. Bxc6 {[%clk 0:02:36]}  Qxc6 {[%clk 0:02:48]} 8. b3 {[%clk 0:01:56]}  e6 {[%clk 0:02:28]} 9. Ba3 {[%clk 0:01:53]}  Bxa3 {[%clk 0:02:12]} 10. Nxa3 {[%clk 0:01:54]}  Qc3 {[%clk 0:02:12]} 11. Qd2 {[%clk 0:01:48]}  Qb2 {[%clk 0:01:58]} 12. Qa5 {[%clk 0:01:47]}  b6 {[%clk 0:01:43]} 13. Qa4+ {[%clk 0:01:46]}  Kd8 {[%clk 0:01:36]} 14. Ng5 {[%clk 0:00:58]}  Nh6 {[%clk 0:01:36]} 15. h3 {[%clk 0:00:49]}  Bf5 {[%clk 0:01:29]} 16. c4 {[%clk 0:00:49]}  Qxd4 {[%clk 0:01:17]} 17. Rad1 {[%clk 0:00:46]}  Qf4 {[%clk 0:01:10]} 18. Qc6 {[%clk 0:00:46]}  Ra7 {[%clk 0:00:52]} 19. cxd5 {[%clk 0:00:46]}  Qxg5 {[%clk 0:00:41]} 20. d6 {[%clk 0:00:20]}  Kc8 {[%clk 0:00:19]} 21. Nc4 {[%clk 0:00:18]}  Kb8 {[%clk 0:00:16]} 22. dxc7+ {[%clk 0:00:10]}  Rxc7 {[%clk 0:00:16]} 23. Qxb6+ {[%clk 0:00:10]}  Rb7 {[%clk 0:00:17]} 24. Qd6+ {[%clk 0:00:08]}  Ka7 {[%clk 0:00:17]} 25. Na5 {[%clk 0:00:09]}  Rc8 {[%clk 0:00:16]} 26. Nxb7 {[%clk 0:00:08]}  Kxb7 {[%clk 0:00:16]} 27. f4 {[%clk 0:00:07]}  Qg3 {[%clk 0:00:15]} 28. Qb4+ {[%clk 0:00:04]}  Ka8 {[%clk 0:00:11]} 29. Qb6 {[%clk 0:00:04]}  Bd3 {[%clk 0:00:10]} 30. Rc1 {[%clk 0:00:02]}  Rb8 {[%clk 0:00:09]} 31. Qc6+ {[%clk 0:00:02]}  Ka7 {[%clk 0:00:09]} 32. Qc5+ {[%clk 0:00:02]}  Ka8 {[%clk 0:00:09]} 33. Rf3 {[%clk 0:00:02]}  Qg6 {[%clk 0:00:08]} 34. Qd6 {[%clk 0:00:01]}  Bb5 {[%clk 0:00:07]} 35. Rc7 {[%clk 0:00:01]}  Nf5 {[%clk 0:00:06]} 36. Qc5 {[%clk 0:00:02]}  Rb7 {[%clk 0:00:06]} 37. Rc8+ {[%clk 0:00:01]}  Rb8 {[%clk 0:00:07]} 38. Rc7 {[%clk 0:00:01]}  Rb7 {[%clk 0:00:07]} 39. Rxb7 {[%clk 0:00:02]}  Kxb7 {[%clk 0:00:07]} 40. Rc3 {[%clk 0:00:03]}  Qg3 {[%clk 0:00:02]} 41. Qc7+ {[%clk 0:00:02]}  Ka8 {[%clk 0:00:03]} 42. Qc8+ {[%clk 0:00:02]}  Ka7 {[%clk 0:00:03]} 43. Qc7+ {[%clk 0:00:03]}  Ka8 {[%clk 0:00:04]} 44. Qd8+ {[%clk 0:00:04]}  Kb7 {[%clk 0:00:04]} 45. Rc7+ {[%clk 0:00:04]}  Kb6 {[%clk 0:00:05]} 46. Rc3+ {[%clk 0:00:05]}  Kb7 {[%clk 0:00:04]} 47. Rxg3 {[%clk 0:00:05]}  Nxg3 {[%clk 0:00:05]} 48. Qe7+ {[%clk 0:00:05]}  Kc6 {[%clk 0:00:05]} 49. Qxf7 {[%clk 0:00:06]}  Ne2+ {[%clk 0:00:04]} 50. Kh2 {[%clk 0:00:07]}  Nd4 {[%clk 0:00:05]} 51. Qxg7 {[%clk 0:00:07]}  Bd3 {[%clk 0:00:05]} 52. Qf6 {[%clk 0:00:06]}  Kd5 {[%clk 0:00:04]} 53. Qd8+ {[%clk 0:00:07]}  Ke4 {[%clk 0:00:05]} 54. Qd6 {[%clk 0:00:07]}  Bb1 {[%clk 0:00:04]} 55. a4 {[%clk 0:00:07]}  Bc2 {[%clk 0:00:03]} 56. a5 {[%clk 0:00:07]}  Bxb3 {[%clk 0:00:03]} 57. Qxa6 {[%clk 0:00:07]}  Kxf4 {[%clk 0:00:02]} 58. Qb6 {[%clk 0:00:06]}  Kxe5 {[%clk 0:00:02]} 59. a6 {[%clk 0:00:07]}  Bd5 {[%clk 0:00:03]} 60. a7 {[%clk 0:00:07]}  Nf5 {[%clk 0:00:02]} 61. Qb8+ {[%clk 0:00:07]}  Ke4 {[%clk 0:00:00]} 62. a8=Q {[%clk 0:00:08]} 1-0


[Site "https://www.chess.com"]

[Event "Titled Tuesday Blitz August 1 Early 2023"]
[White "Oleksiyenko, Mykhaylo"]
[Black "Al-Tarboush, Ward"]
[WhiteFideId "4152417"]
[BlackFideId "7601450"]
[WhiteElo "2699"]
[BlackElo "2548"]
[Result "0-1"]
[Round "10"]
[TimeControl "180+1"]
[Date "2023.08.01"]
[WhiteClock "0:00:10"]
[BlackClock "0:00:25"]
[Board "46"]

1. e4 {[%clk 0:03:00]}  c5 {[%clk 0:02:59]} 2. Nf3 {[%clk 0:03:00]}  Nc6 {[%clk 0:02:59]} 3. d4 {[%clk 0:02:58]}  cxd4 {[%clk 0:02:59]} 4. Nxd4 {[%clk 0:02:55]}  Nf6 {[%clk 0:02:59]} 5. Nc3 {[%clk 0:02:55]}  e5 {[%clk 0:02:58]} 6. Ndb5 {[%clk 0:02:55]}  d6 {[%clk 0:02:58]} 7. Bg5 {[%clk 0:02:55]}  a6 {[%clk 0:02:57]} 8. Bxf6 {[%clk 0:02:55]}  gxf6 {[%clk 0:02:56]} 9. Na3 {[%clk 0:02:56]}  b5 {[%clk 0:02:53]} 10. Nd5 {[%clk 0:02:56]}  f5 {[%clk 0:02:50]} 11. Bd3 {[%clk 0:02:56]}  Be6 {[%clk 0:02:47]} 12. c3 {[%clk 0:02:57]}  Bg7 {[%clk 0:02:46]} 13. Qh5 {[%clk 0:02:57]}  f4 {[%clk 0:02:02]} 14. Nc2 {[%clk 0:02:40]}  O-O {[%clk 0:02:00]} 15. g3 {[%clk 0:02:36]}  f5 {[%clk 0:01:48]} 16. gxf4 {[%clk 0:02:25]}  Bf7 {[%clk 0:01:47]} 17. Qh3 {[%clk 0:02:20]}  Ne7 {[%clk 0:01:39]} 18. Nxe7+ {[%clk 0:02:01]}  Qxe7 {[%clk 0:01:40]} 19. O-O-O {[%clk 0:02:02]}  Bxa2 {[%clk 0:01:40]} 20. Rhg1 {[%clk 0:01:58]}  a5 {[%clk 0:01:38]} 21. exf5 {[%clk 0:01:48]}  Kh8 {[%clk 0:01:38]} 22. fxe5 {[%clk 0:01:32]}  Bxe5 {[%clk 0:01:24]} 23. f6 {[%clk 0:01:31]}  Rxf6 {[%clk 0:01:18]} 24. Rde1 {[%clk 0:01:30]}  Rxf2 {[%clk 0:01:12]} 25. Rg4 {[%clk 0:00:39]}  Raf8 {[%clk 0:01:03]} 26. Rh4 {[%clk 0:00:38]}  R8f7 {[%clk 0:00:26]} 27. Qc8+ {[%clk 0:00:27]}  Rf8 {[%clk 0:00:26]} 28. Qh3 {[%clk 0:00:27]}  R2f7 {[%clk 0:00:26]} 29. Ne3 {[%clk 0:00:18]}  Be6 {[%clk 0:00:25]} 30. Qg2 {[%clk 0:00:10]}  Qxh4 {[%clk 0:00:25]} 0-1


[Site "https://www.chess.com"]

[Event "Titled Tuesday Blitz August 1 Early 2023"]
[White "only_strong_moves"]
[Black "Heinemann, Josefine"]
[BlackFideId "12900460"]
[WhiteElo "2695"]
[BlackElo "2549"]
[Result "1/2-1/2"]
[Round "10"]
[TimeControl "180+1"]
[Date "2023.08.01"]
[WhiteClock "0:00:08"]
[BlackClock "0:01:37"]
[Board "47"]

1. d4 {[%clk 0:03:00]}  Nf6 {[%clk 0:02:59]} 2. Nc3 {[%clk 0:03:01]}  d5 {[%clk 0:02:59]} 3. Bf4 {[%clk 0:03:01]}  c5 {[%clk 0:02:59]} 4. e3 {[%clk 0:03:01]}  cxd4 {[%clk 0:02:59]} 5. exd4 {[%clk 0:03:01]}  a6 {[%clk 0:03:00]} 6. Be2 {[%clk 0:02:59]}  Nc6 {[%clk 0:03:00]} 7. Nf3 {[%clk 0:02:59]}  e6 {[%clk 0:02:59]} 8. O-O {[%clk 0:02:57]}  Be7 {[%clk 0:02:58]} 9. a4 {[%clk 0:02:48]}  Qb6 {[%clk 0:02:55]} 10. b3 {[%clk 0:02:42]}  O-O {[%clk 0:02:55]} 11. Bd3 {[%clk 0:02:35]}  Bd7 {[%clk 0:02:49]} 12. Ne2 {[%clk 0:02:29]}  Rac8 {[%clk 0:02:48]} 13. c3 {[%clk 0:02:26]}  Ne4 {[%clk 0:02:46]} 14. Nd2 {[%clk 0:02:08]}  Nxd2 {[%clk 0:02:42]} 15. Qxd2 {[%clk 0:02:09]}  Bf6 {[%clk 0:02:42]} 16. Bd6 {[%clk 0:02:02]}  Rfe8 {[%clk 0:02:41]} 17. Bc5 {[%clk 0:02:01]}  Qd8 {[%clk 0:02:41]} 18. f4 {[%clk 0:01:59]}  g6 {[%clk 0:02:40]} 19. Kh1 {[%clk 0:01:54]}  Ne7 {[%clk 0:02:35]} 20. Ba3 {[%clk 0:01:42]}  Bc6 {[%clk 0:02:33]} 21. Ng1 {[%clk 0:01:39]}  Nf5 {[%clk 0:02:33]} 22. Nf3 {[%clk 0:01:37]}  Nd6 {[%clk 0:02:33]} 23. Bxd6 {[%clk 0:01:30]}  Qxd6 {[%clk 0:02:33]} 24. Ne5 {[%clk 0:01:30]}  Bg7 {[%clk 0:02:31]} 25. Rae1 {[%clk 0:01:22]}  f6 {[%clk 0:02:30]} 26. Nf3 {[%clk 0:01:19]}  Bd7 {[%clk 0:02:29]} 27. a5 {[%clk 0:01:02]}  Re7 {[%clk 0:02:25]} 28. c4 {[%clk 0:01:02]}  Rce8 {[%clk 0:02:24]} 29. c5 {[%clk 0:01:01]}  Qc7 {[%clk 0:02:24]} 30. Bb1 {[%clk 0:00:51]}  Bc6 {[%clk 0:02:19]} 31. Rf2 {[%clk 0:00:47]}  e5 {[%clk 0:02:17]} 32. fxe5 {[%clk 0:00:46]}  fxe5 {[%clk 0:02:18]} 33. dxe5 {[%clk 0:00:42]}  Bxe5 {[%clk 0:02:18]} 34. Nxe5 {[%clk 0:00:36]}  Rxe5 {[%clk 0:02:19]} 35. Ref1 {[%clk 0:00:36]}  Qe7 {[%clk 0:02:11]} 36. b4 {[%clk 0:00:25]}  Re2 {[%clk 0:02:06]} 37. Qd4 {[%clk 0:00:18]}  Rxf2 {[%clk 0:02:05]} 38. Qxf2 {[%clk 0:00:19]}  Rf8 {[%clk 0:02:02]} 39. Qxf8+ {[%clk 0:00:18]}  Qxf8 {[%clk 0:02:03]} 40. Rxf8+ {[%clk 0:00:17]}  Kxf8 {[%clk 0:02:04]} 41. Kg1 {[%clk 0:00:18]}  Ke7 {[%clk 0:02:03]} 42. Kf2 {[%clk 0:00:18]}  Kf6 {[%clk 0:02:04]} 43. Ke3 {[%clk 0:00:17]}  Ke5 {[%clk 0:02:04]} 44. g3 {[%clk 0:00:18]}  d4+ {[%clk 0:02:05]} 45. Kd2 {[%clk 0:00:18]}  Be8 {[%clk 0:01:58]} 46. Bd3 {[%clk 0:00:18]}  h6 {[%clk 0:01:57]} 47. h4 {[%clk 0:00:16]}  g5 {[%clk 0:01:57]} 48. hxg5 {[%clk 0:00:11]}  hxg5 {[%clk 0:01:58]} 49. Ke2 {[%clk 0:00:10]}  Bc6 {[%clk 0:01:58]} 50. Kf2 {[%clk 0:00:10]}  Bd5 {[%clk 0:01:50]} 51. Ke2 {[%clk 0:00:09]}  Bc6 {[%clk 0:01:50]} 52. Kd2 {[%clk 0:00:09]}  Bd5 {[%clk 0:01:49]} 53. Be2 {[%clk 0:00:09]}  Bc6 {[%clk 0:01:49]} 54. Bd3 {[%clk 0:00:10]}  Bd5 {[%clk 0:01:49]} 55. b5 {[%clk 0:00:05]}  axb5 {[%clk 0:01:48]} 56. Bxb5 {[%clk 0:00:06]}  Ke4 {[%clk 0:01:46]} 57. Ke2 {[%clk 0:00:04]}  d3+ {[%clk 0:01:39]} 58. Bxd3+ {[%clk 0:00:03]}  Kd4 {[%clk 0:01:40]} 59. a6 {[%clk 0:00:02]}  bxa6 {[%clk 0:01:39]} 60. Bxa6 {[%clk 0:00:03]}  Kxc5 {[%clk 0:01:39]} 61. Ke3 {[%clk 0:00:04]}  Kd6 {[%clk 0:01:39]} 62. Bd3 {[%clk 0:00:04]}  Ke5 {[%clk 0:01:39]} 63. Be2 {[%clk 0:00:04]}  Be4 {[%clk 0:01:37]} 64. Kf2 {[%clk 0:00:05]}  Kf5 {[%clk 0:01:36]} 65. Bh5 {[%clk 0:00:06]}  Ke5 {[%clk 0:01:36]} 66. Be8 {[%clk 0:00:06]}  Kf5 {[%clk 0:01:36]} 67. Bh5 {[%clk 0:00:07]}  Ke5 {[%clk 0:01:37]} 68. Be8 {[%clk 0:00:07]}  Kf5 {[%clk 0:01:37]} 69. Bh5 {[%clk 0:00:08]} 1/2-1/2


[Site "https://www.chess.com"]

[Event "Titled Tuesday Blitz August 1 Early 2023"]
[White "Timerkhanov, Alexander"]
[Black "Berezin, Viktor"]
[WhiteFideId "24177938"]
[BlackFideId "14107872"]
[WhiteElo "2640"]
[BlackElo "2533"]
[Result "1-0"]
[Round "10"]
[TimeControl "180+1"]
[Date "2023.08.01"]
[WhiteClock "0:00:39"]
[BlackClock "0:00:20"]
[Board "52"]

1. d4 {[%clk 0:03:00]}  Nf6 {[%clk 0:02:58]} 2. Bg5 {[%clk 0:03:01]}  Ne4 {[%clk 0:02:57]} 3. h4 {[%clk 0:03:01]}  d6 {[%clk 0:02:56]} 4. Nd2 {[%clk 0:03:00]}  Bf5 {[%clk 0:02:53]} 5. Nxe4 {[%clk 0:02:56]}  Bxe4 {[%clk 0:02:54]} 6. f3 {[%clk 0:02:55]}  Bf5 {[%clk 0:02:54]} 7. e4 {[%clk 0:02:54]}  Bc8 {[%clk 0:02:54]} 8. h5 {[%clk 0:02:50]}  c5 {[%clk 0:02:54]} 9. Be3 {[%clk 0:02:49]}  Nc6 {[%clk 0:02:51]} 10. dxc5 {[%clk 0:02:49]}  Qa5+ {[%clk 0:02:49]} 11. Qd2 {[%clk 0:02:49]}  Qxd2+ {[%clk 0:02:18]} 12. Kxd2 {[%clk 0:02:50]}  dxc5 {[%clk 0:02:15]} 13. Bxc5 {[%clk 0:02:50]}  e5 {[%clk 0:02:08]} 14. Bxf8 {[%clk 0:02:50]}  Kxf8 {[%clk 0:02:09]} 15. c3 {[%clk 0:02:50]}  Ke7 {[%clk 0:02:07]} 16. Bb5 {[%clk 0:02:49]}  Rd8+ {[%clk 0:02:07]} 17. Ke3 {[%clk 0:02:47]}  Nb8 {[%clk 0:02:03]} 18. Ne2 {[%clk 0:02:44]}  a6 {[%clk 0:02:03]} 19. Bc4 {[%clk 0:02:41]}  Be6 {[%clk 0:01:59]} 20. Bxe6 {[%clk 0:02:41]}  Kxe6 {[%clk 0:02:00]} 21. Rad1 {[%clk 0:02:27]}  Nc6 {[%clk 0:01:59]} 22. g4 {[%clk 0:02:27]}  Na5 {[%clk 0:01:51]} 23. b3 {[%clk 0:02:26]}  b5 {[%clk 0:01:51]} 24. g5 {[%clk 0:02:18]}  Nc6 {[%clk 0:01:48]} 25. f4 {[%clk 0:02:10]}  a5 {[%clk 0:01:48]} 26. f5+ {[%clk 0:02:07]}  Ke7 {[%clk 0:01:48]} 27. Rd5 {[%clk 0:01:54]}  Rxd5 {[%clk 0:01:46]} 28. exd5 {[%clk 0:01:55]}  Nb8 {[%clk 0:01:46]} 29. Ke4 {[%clk 0:01:55]}  Kd6 {[%clk 0:01:43]} 30. g6 {[%clk 0:01:27]}  Nd7 {[%clk 0:01:38]} 31. h6 {[%clk 0:01:17]}  hxg6 {[%clk 0:01:31]} 32. fxg6 {[%clk 0:01:16]}  fxg6 {[%clk 0:01:12]} 33. hxg7 {[%clk 0:01:10]}  Rg8 {[%clk 0:01:09]} 34. c4 {[%clk 0:01:07]}  Rxg7 {[%clk 0:01:04]} 35. Nc3 {[%clk 0:01:06]}  bxc4 {[%clk 0:01:03]} 36. bxc4 {[%clk 0:01:05]}  Nf6+ {[%clk 0:01:03]} 37. Kd3 {[%clk 0:01:05]}  g5 {[%clk 0:01:00]} 38. Rh6 {[%clk 0:01:04]}  Ke7 {[%clk 0:01:00]} 39. d6+ {[%clk 0:00:49]}  Kf7 {[%clk 0:00:55]} 40. c5 {[%clk 0:00:49]}  g4 {[%clk 0:00:51]} 41. c6 {[%clk 0:00:48]}  g3 {[%clk 0:00:48]} 42. c7 {[%clk 0:00:49]}  Rg8 {[%clk 0:00:46]} 43. Ne2 {[%clk 0:00:46]}  g2 {[%clk 0:00:40]} 44. Rxf6+ {[%clk 0:00:43]}  Kxf6 {[%clk 0:00:38]} 45. d7 {[%clk 0:00:44]}  Rg3+ {[%clk 0:00:25]} 46. Kd2 {[%clk 0:00:41]}  g1=Q {[%clk 0:00:20]} 47. d8=Q+ {[%clk 0:00:39]} 1-0


[Site "https://www.chess.com"]

[Event "Titled Tuesday Blitz August 1 Early 2023"]
[White "Estrada Nieto, Julian"]
[Black "Sipila, Vilka"]
[WhiteFideId "5101018"]
[BlackFideId "505455"]
[WhiteElo "2529"]
[BlackElo "2637"]
[Result "0-1"]
[Round "10"]
[TimeControl "180+1"]
[Date "2023.08.01"]
[WhiteClock "0:00:00"]
[BlackClock "0:00:43"]
[Board "53"]

1. e4 {[%clk 0:03:00]}  c5 {[%clk 0:02:59]} 2. Nf3 {[%clk 0:03:00]}  e6 {[%clk 0:03:00]} 3. c3 {[%clk 0:02:59]}  Nf6 {[%clk 0:02:58]} 4. e5 {[%clk 0:02:59]}  Nd5 {[%clk 0:02:58]} 5. Bc4 {[%clk 0:02:59]}  Nb6 {[%clk 0:02:57]} 6. Bb3 {[%clk 0:02:59]}  c4 {[%clk 0:02:57]} 7. Bc2 {[%clk 0:03:00]}  d6 {[%clk 0:02:56]} 8. d4 {[%clk 0:02:59]}  cxd3 {[%clk 0:02:56]} 9. Qxd3 {[%clk 0:02:59]}  Nc6 {[%clk 0:02:56]} 10. exd6 {[%clk 0:02:58]}  Qxd6 {[%clk 0:02:56]} 11. Qe2 {[%clk 0:02:55]}  Be7 {[%clk 0:02:52]} 12. O-O {[%clk 0:02:53]}  O-O {[%clk 0:02:52]} 13. Rd1 {[%clk 0:02:52]}  Qc7 {[%clk 0:02:52]} 14. Nbd2 {[%clk 0:02:52]}  Rd8 {[%clk 0:02:51]} 15. Ne4 {[%clk 0:02:49]}  Rxd1+ {[%clk 0:02:52]} 16. Qxd1 {[%clk 0:02:48]}  h6 {[%clk 0:02:50]} 17. Qd3 {[%clk 0:02:37]}  f5 {[%clk 0:02:40]} 18. Ng3 {[%clk 0:02:33]}  Bd7 {[%clk 0:02:35]} 19. Bd2 {[%clk 0:02:15]}  Rc8 {[%clk 0:02:28]} 20. Bb3 {[%clk 0:02:10]}  Kh8 {[%clk 0:02:22]} 21. Re1 {[%clk 0:02:04]}  Rd8 {[%clk 0:02:18]} 22. Qe2 {[%clk 0:01:55]}  Bd6 {[%clk 0:02:04]} 23. c4 {[%clk 0:01:20]}  Bc5 {[%clk 0:01:43]} 24. Bc3 {[%clk 0:01:20]}  Bc8 {[%clk 0:01:43]} 25. Ne5 {[%clk 0:01:07]}  Nd4 {[%clk 0:01:40]} 26. Qh5 {[%clk 0:01:03]}  Kg8 {[%clk 0:01:37]} 27. Qg6 {[%clk 0:00:47]}  Rf8 {[%clk 0:01:35]} 28. Nh5 {[%clk 0:00:41]}  Qe7 {[%clk 0:01:34]} 29. Qg3 {[%clk 0:00:33]}  Qg5 {[%clk 0:01:31]} 30. Qxg5 {[%clk 0:00:22]}  hxg5 {[%clk 0:01:32]} 31. Rd1 {[%clk 0:00:22]}  Rd8 {[%clk 0:01:15]} 32. Kf1 {[%clk 0:00:20]}  Rd6 {[%clk 0:01:15]} 33. Ng3 {[%clk 0:00:15]}  Bd7 {[%clk 0:01:07]} 34. Nd3 {[%clk 0:00:13]}  Nxb3 {[%clk 0:01:07]} 35. axb3 {[%clk 0:00:12]}  Nc8 {[%clk 0:00:52]} 36. Ke2 {[%clk 0:00:08]}  b6 {[%clk 0:00:52]} 37. Nxc5 {[%clk 0:00:08]}  Rxd1 {[%clk 0:00:52]} 38. Kxd1 {[%clk 0:00:08]}  bxc5 {[%clk 0:00:52]} 39. Be5 {[%clk 0:00:07]}  Bc6 {[%clk 0:00:50]} 40. f3 {[%clk 0:00:07]}  g4 {[%clk 0:00:48]} 41. Ke2 {[%clk 0:00:07]}  gxf3+ {[%clk 0:00:48]} 42. gxf3 {[%clk 0:00:07]}  Kf7 {[%clk 0:00:47]} 43. Nf1 {[%clk 0:00:06]}  g5 {[%clk 0:00:44]} 44. Nd2 {[%clk 0:00:06]}  Ke7 {[%clk 0:00:45]} 45. Ke3 {[%clk 0:00:05]}  Nd6 {[%clk 0:00:45]} 46. Bxd6+ {[%clk 0:00:04]}  Kxd6 {[%clk 0:00:46]} 47. f4 {[%clk 0:00:04]}  e5 {[%clk 0:00:43]} 48. fxg5 {[%clk 0:00:03]}  Ke6 {[%clk 0:00:42]} 49. h4 {[%clk 0:00:03]}  f4+ {[%clk 0:00:42]} 50. Kf2 {[%clk 0:00:00]}  Kf5 {[%clk 0:00:43]} 0-1


[Site "https://www.chess.com"]